Cogmind - Beta 13 @@@ ROGUE MODE // 2024.02.29 @ 22:12:19 Player: Minty Result: Destroyed by 1E-S3R(R) with Subdweller Beam Cannon Performance ------------- Evolutions (0) 0 Regions Visited (3) 600 Robots Destroyed (41) 205 Value Destroyed (886) 886 Prototype IDs (0) 0 Alien Tech Used (0) 0 Bonus (26) 26 TOTAL SCORE: 1717 Bonus ------- High Alert Combat Kills 26 Cogmind --------- Core Integrity 0/250 Matter 126/300 Energy 123/125 System Corruption 9% Temperature Cool (9) Movement Rolling (110) Location -10/Subcaves Parts ------- > --- POWER (1) -------- Light Ion Engine > --- PROPULSION (2) --- Subdweller Monowheel Subdweller Monowheel > --- UTILITY (2) ------ Large Storage Unit Subdweller Optics > --- WEAPON (2) ------- Subdweller Laser Subdweller Machine Gun > --- INVENTORY (15) --- Subdweller Power Source Flight Unit Flight Unit Flight Unit Small Storage Unit Large Matter Pod (150) Compact Matter Pod (150) Propulsion Shielding Heavy Riot Gun Rocket Launcher Rocket Launcher Mining Laser Multitool Hammer Peak State ------------ > --- POWER ------------ Subdweller Power Source > --- PROPULSION ------- Subdweller Monowheel Subdweller Monowheel > --- UTILITY ---------- Large Storage Unit Subdweller Optics > --- WEAPON ----------- Subdweller Laser Subdweller Machine Gun > --- INVENTORY -------- Light Ion Engine Flight Unit Flight Unit Flight Unit Small Storage Unit Large Matter Pod Compact Matter Pod Propulsion Shielding Heavy Riot Gun Rocket Launcher Rocket Launcher Mining Laser Multitool Hammer [Rating: 15] Favorites ----------- Power Ion Engine Engine Ion Engine Propulsion Wheel Leg Aluminum Leg Wheel Wheel Flight Unit Flight Unit Utility Large Storage Unit Device Subdweller Optics Storage Large Storage Unit Protection Weapon Shielding Weapon Rocket Launcher Energy Gun Subdweller Laser Ballistic Gun Assault Rifle Launcher Rocket Launcher Impact Weapon Hammer Build | -11 -10 -10 -10 ------- Run | Yrd Mat Min Sub Slots Evolved . | . . . . Power . | . . . . Propulsion . | . . . . Utility . | . . . . Weapon . | . . . . Parts Attached 35 | . 20 . 15 Power 7 | . 4 . 3 Engine 7 | . 4 . 3 Core . | . . . . Reactor . | . . . . Propulsion 13 | . 9 . 4 Treads . | . . . . Leg . | . . . . Wheel 12 | . 8 . 4 Hover . | . . . . Flight 1 | . 1 . . Utility 5 | . 4 . 1 Device 2 | . 1 . 1 Storage 1 | . 1 . . Processor . | . . . . Hackware . | . . . . Protection 2 | . 2 . . Artifact . | . . . . Weapon 10 | . 3 . 7 Energy Gun 3 | . . . 3 Energy Cannon . | . . . . Ballistic Gun 2 | . 1 . 1 Ballistic Cannon . | . . . . Launcher 4 | . 2 . 2 Special Weapon . | . . . . Impact Weapon 1 | . . . 1 Slashing Weapon . | . . . . Piercing Weapon . | . . . . Special Melee Weapon . | . . . . Unidentified Prototypes . | . . . . Corrupted Parts 2 | . 1 . 1 System Corruption 8 | . 7 . 1 Parts Lost 10 | . 3 . 7 Power 2 | . 1 . 1 Propulsion 3 | . 1 . 2 Utility 2 | . 1 . 1 Weapon 3 | . . . 3 Highest Loss Streak 4 | . 2 . 4 To Critical Strikes . | . . . . Average Slot Usage (%) 88 | . 93 100 79 Engine 11 | . 13 14 8 Leg 2 | . 6 . . Wheel 21 | . 21 28 20 Device 7 | . 5 . 12 Storage 14 | . 14 14 14 Protection 4 | . 4 14 1 Energy Gun 2 | . 1 . 4 Ballistic Gun 5 | . 6 . 4 Launcher 14 | . 19 28 4 Impact Weapon 3 | . . . 8 Naked Turns . | . . . . Heaviest Build 35 | 14 34 34 35 Greatest Support 40 | 20 26 20 40 Greatest Overweight (x) 4 | . 4 1 1 Average Overweight (x) . | . . 1 . Largest Inventory Capacity 15 | . 15 15 15 Average Capacity 12 | . 9 15 15 Most Carried 15 | . 13 15 15 Average Carried 10 | . 8 14 12 Final Capacity 15 | 8 15 15 15 Final Carried 15 | 6 13 15 14 Class Distribution -------------------- 94% | Mutant 5% | Scavenger-Mutant Dominant Class ---------------- Mutant | -10/Materials Mutant | -10/Mines Mutant | -10/Subcaves Resources | -11 -10 -10 -10 ----------- Run | Yrd Mat Min Sub Matter Collected 1056 | 200 591 94 171 Remotely . | . . . . Salvage Created 770 | . 465 15 290 Parts 82 | . 50 4 28 Haulers Intercepted 1 | . 1 . . Recyclers Shooed 1 | . 1 . . Parts Field Recycled . | . . . . Retrieved Matter . | . . . . Parts Self-Destructed 4 | . . . 4 Prevented . | . . . . Kills | -11 -10 -10 -10 ------- Run | Yrd Mat Min Sub Combat Hostiles Destroyed 27 | . 16 3 8 Guns 4 | . 2 . 2 AOE 22 | . 14 3 5 Classes Destroyed 12 | . 10 . 2 Worker 2 | . 2 . . Builder 1 | . 1 . . Tunneler 2 | . 1 1 . Hauler 1 | . 1 . . Recycler 1 | . 1 . . Mechanic 1 | . 1 . . Operator 3 | . 3 . . Watcher 3 | . 3 . . Swarmer 12 | . 9 3 . Grunt 7 | . 7 . . Artisan 2 | . . . 2 Subdweller 8 | . . . 8 Best Kill Streak 7 | . 7 3 4 Combat Bots Only 5 | . 5 3 4 Max Kills in Single Turn 4 | . 4 2 1 Gunslinging . | . . . . Exploded 3 | . 3 2 1 Melee . | . . . . Uniques/NPCs Destroyed . | . . . . Combat | -11 -10 -10 -10 -------- Run | Yrd Mat Min Sub Hostile Shots Fired 80 | . 48 3 29 Missed 25 | . 17 1 7 Damage Taken 1311 | . 527 19 765 Core 259 | . 40 . 219 Absorbed by Shields 67 | . 67 . . Redirected to Shielding 53 | . 10 2 41 Core Remaining (%) 100 | 100 . . . Volleys Fired 68 | . 46 4 18 Largest 2 | . 2 1 2 Hottest 90 | . 66 33 90 Shots Fired 101 | . 70 4 27 Gun 50 | . 36 . 14 Cannon . | . . . . Launcher 51 | . 34 4 13 Special . | . . . . Kinetic 47 | . 36 . 11 Thermal . | . . . . Explosive 51 | . 34 4 13 Electromagnetic 3 | . . . 3 Robot Hit Streak 7 | . 5 1 7 Robot Miss Streak 5 | . 5 2 3 Penetration Max . | . . . . Secondary Targets . | . . . . Shots Hit Robots 53 | . 29 1 23 Core Hits 56 | . 39 4 13 Critical Kills . | . . . . Critical Parts Destroyed . | . . . . Critical Strikes . | . . . . Melee Attacks 14 | . . . 14 Impact 14 | . . . 14 Slashing . | . . . . Piercing . | . . . . Sneak Attacks 2 | . . . 2 Combat Hostiles . | . . . . Follow-up Attacks . | . . . . Damage Inflicted 3058 | . 1861 206 991 Guns 459 | . 285 . 174 Cannons . | . . . . Explosions 2398 | . 1536 206 656 Melee 161 | . . . 161 Ramming 40 | . 40 . . Kinetic 430 | . 285 . 145 Thermal . | . . . . Explosive 2342 | . 1480 206 656 Electromagnetic 85 | . 56 . 29 Impact 161 | . . . 161 Slashing . | . . . . Piercing . | . . . . Highest Corruption 9 | . 8 8 9 Average Corruption 6 | . 2 8 8 Corruption Purged . | . . . . Corruption Blocked . | . . . . Effects 26 | . 1 3 22 Message Errors 11 | . 1 1 9 Matter Fused 8 | . . 1 7 Heat Flow Errors 3 | . . 1 2 Energy Discharges 2 | . . . 2 Data Loss (minor) 1 | . . . 1 Data Loss (major) 1 | . . . 1 Overload Shots . | . . . . Overflow Damage 48 | . 21 . 27 Projectiles . | . . . . Explosions 21 | . 21 . . Melee 27 | . . . 27 Knockbacks 1 | . . . 1 Impact 1 | . . . 1 Kinetic . | . . . . Secondary . | . . . . Self-Inflicted Damage 328 | . 260 . 68 Shots 9 | . 7 . 2 Rammed 6 | . 6 . . Targets Rammed 6 | . 6 . . Kicked . | . . . . Crushed . | . . . . Highest Temperature 166 | . 22 88 166 Average Temperature 21 | . 7 48 86 Received Heat Transfer 237 | . 168 . 69 Siege Activations . | . . . . Robots Corrupted . | . . . . Combat Hostiles . | . . . . Parts Fried . | . . . . Impact Corruptions 1 | . . . 1 Robots Melted . | . . . . Combat Hostiles . | . . . . Parts Melted . | . . . . Heat Transferred . | . . . . Parts Sabotaged . | . . . . Parts Stolen . | . . . . Parts Stripped . | . . . . Power Chain Reactions 2 | . 2 . . Alert | -11 -10 -10 -10 ------- Run | Yrd Mat Min Sub Peak Influence 563 | . 563 324 . Initial 219 | . . 219 . Average 269 | . 264 294 . Maximum Alert Level 2 | . 2 1 . Low Security (%) 35 | . 43 . . Level 1 46 | . 34 100 . Level 2 18 | . 22 . . Level 3 . | . . . . Level 4 . | . . . . Level 5 . | . . . . High Security . | . . . . Max Security . | . . . . Squads Dispatched 3 | . 3 . . Investigation 2 | . 2 . . Extermination . | . . . . Reinforcement 1 | . 1 . . Assault . | . . . . Garrison . | . . . . Intercept . | . . . . Searches Triggered . | . . . . Construction Impeded . | . . . . Haulers Reinforced . | . . . . Active Scanning Responses . | . . . . Cargo Convoy Interrupts . | . . . . Stealth | -11 -10 -10 -10 --------- Run | Yrd Mat Min Sub Distress Signals 1 | . 1 . . Communications Jammed . | . . . . Distress Signals . | . . . . Times Spotted 26 | . 14 3 9 Peak Tracking Total 5 | . 5 3 2 Tactical Retreats . | . . . . Traps | -11 -10 -10 -10 ------- Run | Yrd Mat Min Sub Traps Triggered 5 | . . . 5 Indirectly . | . . . . Trap Hack Attempts . | . . . . Triggered . | . . . . Disarmed . | . . . . Reprogrammed . | . . . . Reused . | . . . . Traps Extracted . | . . . . Installed . | . . . . Triggered . | . . . . Machines | -11 -10 -10 -10 ---------- Run | Yrd Mat Min Sub Machines Disabled 7 | . 7 . . Max in Single Turn 1 | . 1 . . Machines Repaired . | . . . . Machines Dismantled . | . . . . Machines Sabotaged . | . . . . Overloaded Fab Kills . | . . . . Hacking | -11 -10 -10 -10 --------- Run | Yrd Mat Min Sub Machines Accessed 2 | . 2 . . Terminals 1 | . 1 . . Fabricators . | . . . . Repair Stations . | . . . . Recycling Units 1 | . 1 . . Scanalyzers . | . . . . Garrison Access . | . . . . Total Hacks 4 | . 4 . . Successful 3 | . 3 . . Failed 1 | . 1 . . Catastrophic . | . . . . Database Lockouts . | . . . . Manual 3 | . 3 . . Terminals 2 | . 2 . . Fabricators . | . . . . Repair Stations . | . . . . Recycling Units 2 | . 2 . . Scanalyzers . | . . . . Garrison Access . | . . . . Terminal Hacks . | . . . . Fabricator Hacks . | . . . . Repair Station Hacks . | . . . . Recycling Unit Hacks 1 | . 1 . . Report Inventory 1 | . 1 . . Scanalyzer . | . . . . Garrison Access Hacks . | . . . . Unauthorized Hacks 2 | . 2 . . Terminals 1 | . 1 . . Sabotage 1 | . 1 . . Fabricators . | . . . . Repair Stations . | . . . . Recycling Units 1 | . 1 . . Tunnel 1 | . 1 . . Scanalyzers . | . . . . Garrison Access . | . . . . Data Cores Recovered 1 | . 1 . . Used . | . . . . Hacking Detections 1 | . 1 . . Full Trace Events . | . . . . Feedback Events . | . . . . Feedback Blocked . | . . . . Robot Schematics Acquired . | . . . . Robots Built . | . . . . Authchips . | . . . . Time . | . . . . Total Robot Build Rating . | . . . . Part Schematics Acquired . | . . . . Parts Built . | . . . . Authchips . | . . . . Time . | . . . . Total Part Build Rating . | . . . . Parts Repaired . | . . . . Time . | . . . . Parts Recycled . | . . . . Recycled Matter . | . . . . Retrieved Matter . | . . . . Retrieved Components . | . . . . Parts Scanalyzed . | . . . . Part Schematics Acquired . | . . . . Parts Damaged . | . . . . Bothacking | -11 -10 -10 -10 ------------ Run | Yrd Mat Min Sub Used RIF Installer . | . . . . Robots Hacked . | . . . . Non-combat . | . . . . Combat . | . . . . Robot Hacks Applied . | . . . . Relay Couplers Released . | . . . . Fabnet Peak Effective % . | . . . . Robots Rewired . | . . . . Allies Hacked . | . . . . Hacks Repelled . | . . . . Allies | -11 -10 -10 -10 -------- Run | Yrd Mat Min Sub Total Allies . | . . . . Largest Group . | . . . . Highest-Rated Group . | . . . . Highest-Rated Ally . | . . . . Total Orders . | . . . . Ally Attacks . | . . . . Total Damage . | . . . . Kills . | . . . . Allies Corrupted . | . . . . Allies Melted . | . . . . Intel | -11 -10 -10 -10 ------- Run | Yrd Mat Min Sub Robot Analysis Total . | . . . . Derelict Logs Recovered . | . . . . Drone Launches . | . . . . Drone Recoveries . | . . . . Exploration | -11 -10 -10 -10 ------------- Run | Yrd Mat Min Sub Turns Passed 1360 | . 657 149 554 Spaces Moved 1079 | 1 540 147 391 Core . | . . . . Treads . | . . . . Legs 78 | 1 77 . . Wheels 1000 | . 462 147 391 Hover . | . . . . Flight 1 | . 1 . . Fastest Speed 80 | 120 80 95 95 Average Speed 99 | 120 90 95 112 Slowest Speed 360 | 120 360 95 120 Overloaded Moves . | . . . . Propulsion Burnouts . | . . . . Robots Hopped . | . . . . Cave-ins Triggered . | . . . . Exploration Rate (%) 39 | 2 80 47 28 Regions Visited 3 Branch Regions 2 Pre-discovered Areas 1 | . 1 . . Known Exits Taken . | . . . . Unknown Exits Taken 3 | 1 1 1 . Scrap Searched 1 | . . 1 . Spaces Dug 15 | . 14 . 1 Terrain Destroyed 381 | . 249 36 96 Melee 1 | . . . 1 Projectile . | . . . . AOE 380 | . 249 36 95 Terrain Rammed . | . . . . Walls Destroyed . | . . . . Machines Disabled . | . . . . Actions | -11 -10 -10 -10 --------- Run | Yrd Mat Min Sub Total 1239 | . 637 152 450 Wait 1 | . . . 1 Move 1076 | . 539 146 391 Hop . | . . . . Pick Up 14 | . 10 2 2 Fast Attach 14 | . 6 . 8 Attach 8 | . 5 . 3 Detach 8 | . 4 . 4 Swap 13 | . 9 . 4 Drop 17 | . 12 . 5 Fire 68 | . 46 4 18 Melee 14 | . . . 14 Ram 6 | . 6 . . Kick . | . . . . Crush . | . . . . Escape Stasis . | . . . . Rewire . | . . . . Trap . | . . . . Miscellaneous . | . . . . Route ------- -11/Scrapyard -10/Materials (discovered 4 exits: [*Mat x2] / [*Min x2]) -10/Mines (discovered 3 exits: [*Mat] / [*Exi] / [*Sub]) -10/Subcaves (discovered 1 exit: [*Mat]) History --------- Turn | Location | Event 1 | -11/Scrapyard | Discovered new exit (range 0) 1 | -11/Scrapyard | Entered Materials 174 | -10/Materials | Discovered new exit (range 7) 240 | -10/Materials | Discovered new exit (range 14) 311 | -10/Materials | Build established: Mutant 409 | -10/Materials | Discovered new exit (range 9) 517 | -10/Materials | Discovered new exit (range 15) 658 | -10/Materials | Entered Mines 706 | -10/Mines | Deemed a non-threat by the Exiles lab entrance 706 | -10/Mines | Discovered new exit (range 7) 749 | -10/Mines | Discovered new exit (range 9) 799 | -10/Mines | Discovered new exit (range 9) 807 | -10/Mines | Entered Subcaves 881 | -10/Subcaves | Lost 4 parts (1p1u2w) 920 | -10/Subcaves | Discovered new exit (range 16) 931 | -10/Subcaves | Core integrity fell below 50% 961 | -10/Subcaves | Lost 3 parts (2n1w) 1148 | -10/Subcaves | Shifting Twisted Machinery released Hvy. Riot Gun 1149 | -10/Subcaves | Shifting Twisted Machinery released Sub. Machine Gun 1209 | -10/Subcaves | Core integrity fell below 20% 1231 | -10/Subcaves | Ambushed by Subdwellers from Twisted Machinery 1361 | -10/Subcaves | Destroyed by 1E-S3R(R) with Subdweller Beam Cannon Last Messages --------------- 01225_ Rocket Launcher temporarily disabled. 01227_ Acquired 36 matter. 01231_ M0-5O0(R) emerges from the Twisted Machinery. 01233_ M0-5O0(R) destroyed. 01235_ FY-LX3(R) destroyed. 01239_ Acquired 43 matter. 01257_ The unstable cave ceiling collapses. 01257_ Sub. Laser crushed. 01258_ NRIR:X T4OU3%SZCV:D=JQKOK&JM4:J 01263_ The unstable cave ceiling collapses. 01271_ EU-00E(u) cries out in pain. 01271_ EU-00E(u) destroyed. 01273_ System corrupted: Matter fused (-5). 01281_ Acquired Multitool. 01296_ System corrupted: Matter fused (-8). 01309_ Acquired Sub. Laser. 01314_ 4 YBL#AUTS4I7QL9UXW6DL 01330_ FK/Y/%YF>YG/RA|O,XD3 RA 01332_ Acquired Broken Sub. Power Source. 01346_ H#9SX3XTZAQ<&JS XM|H Map ----- +----------------------------------------------------+ | # ## #" ##???#?????## ## ### ####?? | | # ## ### ##" ###???# ### ##? | | ### """"""#?###### # ## " #? | | ### """ "#### ##?### ## ### "" ##? | | # # ==## """" ###" #???# #?##?## ##?? | | # # ### " "" ##"" ###?## #####?## ""###? | | ### !& ""### #??## # #### ## | | ## "## #?## """ " | | # [ """" ### ## ### """ | | # ## "" ## ###?##### """ | | # ####### #### #???????###### | | #???# #??#" ## ##????????????? | | # ##???# #??###########?????????????? | | ## ##???## ##???????????????#####?????? | | ?# ##??#### ##??????????????# #?????? | | ?# ### ## ####????????#### #??????? | | # ## R ##???##### ##??????? | | # #### ## #??## ## " ##?##???? | | ## #?## ## ### ##??# """##"#???? | | ?###### ####?# ###???# """ #???? | | ?????# ###????# ##????# """""" #???? | | ?????## ##??????# #????# "" """" ""#???? | | ?????# #???????# #???## """""" "#???? | | ?##??## #??????## #??## """""""""" "#???? | | ## ??## #??????# #### """ " """""##???? | | # ### ##?????# ## @ " " " "##???? | | # ### #????# ## * " " ##??? | | ?# ## #????# ?## ## # ## """"#??? | | ?## ##????## ??# ####### ## ###""" #?? | | ??## #?????##?## #????# #### #??#" "#? | | ???#### ###???????## #????# #??####???#####? | | ??????###?????##### #???## #??????????????? | | ?????????????## ??## #??????????????? | | ?????????????# ## ###??????????????? | | ????????????# ##????????????????? | | ??????????# #### #????????????????? | | ??????????? ###???## #????????????????? | | ??????????? ???????## #????????????????? | | ?????????????? ###??????# ##????????????????? | | ?????????????? ### ##?### #?????????????????? | | ????????????? ?# "## #?????????????????? | | ??????????????? ## " #####?????????????? | | ????????????# "" #?????????????? | | ????????????? "" ## " ## #?????????????? | | ????????????????????## " ### #?????????????? | | ?????????????????????##" # "& " ##?????????????? | | ??????????????????????# " " " #############??? | | ?????????????????????## """" & ## ##?? | | ????????????????????##"""" " = " ### | | ????????????????????#""" " ### ### # | +----------------------------------------------------+ Best States ------------- Heat Dissipation 25 Energy Generation 15 Energy Capacity 250 Matter Stores 300 Matter Capacity 300 Sight Range 21 Terrain Scan Density 10 Weapon Shielding 33 Evasion (%) 55 Item Schematics ----------------- None Robot Schematics ------------------ None Fabricated ------------ Nothing Alien Tech Used ----------------- None Achievements -------------- None Challenges ------------ None Game ------ Seed ExoskeletonSigixBox Manual? 0 Play Time 00:10:11 Cumulative 682.1 hours Start 2024.02.29 @ 22:04:47 End 2024.02.29 @ 22:12:19 Sessions 1 Manual Loads 0 Difficulty Rogue Special Mode None Game No. 702 Rogue 427 Adventurer 123 Explorer 152 Win Type - Total 25 Types 19/0/4/1/0/0/0/1/0 Lore% 80 Gallery% 91 Achievement% 76 Wizard Run 0 Options --------- Layout 0 ASCII 0 Keyboard 1 Movement Numpad Keybinds 0 Fullscreen 2 Font 18/SmallcapsGlow Map View 76x50 Zoom Use 0% Tactical HUD 1 Map Filters NONE Filters NONE Steam 1 RUN: 9f375f26-4e9c-4050-ad6e-7c0a30003692